lending/lending_fUSD_20260411
["ID","MTS","AMOUNT","RATE_DAILY","PERIOD"]
[420284952,1775910836907,-1500.0,0.00029863,120]
[420284953,1775910836949,-1500.0,0.00029863,120]
[420284954,1775910836997,-1497.0,0.00029863,120]
[420284955,1775910837040,-500.0,0.00029898,120]
[420284956,1775910837094,-1000.0,0.0002996,30]
[420284957,1775910837146,-4825.80731348,0.00029999,120]
[420284958,1775910837198,-363.99105838,0.0003,30]
[420284959,1775910837244,-891.62543935,0.0003,120]
[420284960,1775910837296,-479.51908484,0.0003,120]
[420284961,1775910837341,-1354.85728009,0.0003,30]
[420284962,1775910837384,-172106.23430282,0.0003,120]
[420284963,1775910837424,-521.18893086,0.0003,30]
[420284964,1775910837455,-1018.83291511,0.0003,120]
[420284965,1775910837494,-8997.70554311,0.0003,30]
[420284966,1775910837527,-1000.0,0.0003,120]
[420284967,1775910837562,-1000.0,0.0003,120]
[420284968,1775910837590,-500.0,0.0003,30]
[420284969,1775910837619,-2000.0,0.0003,120]
[420284970,1775910837649,-2000.0,0.0003,120]
[420284971,1775910837677,-2000.0,0.0003,120]
[420284972,1775910837707,-2000.0,0.0003,120]
[420284973,1775910837740,-2000.0,0.0003,120]
[420284974,1775910837767,-1000.0,0.0003,30]
[420284975,1775910837803,-1849.0,0.0003,90]
[420284976,1775910837835,-500.0,0.0003,120]
[420284977,1775910837867,-3375.47925606,0.0003,60]
[420284978,1775910837897,-832.16315987,0.0003,120]
[420284979,1775910837938,-5000.0,0.0003,120]
[420284980,1775910837980,-150.0,0.0003,120]
[420284981,1775910838022,-152.36443795,0.0003,120]
[420284982,1775910838054,-10000.0,0.0003,60]
[420284983,1775910838090,-150.0,0.0003,120]
[420284984,1775910838120,-666.0,0.0003,120]
[420284985,1775910838155,-5071.0,0.0003,120]
[420284986,1775910838192,-2021.54365706,0.0003,120]
[420284987,1775910838224,-5000.0,0.0003,120]
[420284988,1775910838261,-4259.1271406,0.0003,35]
[420284989,1775910838302,-1517.86,0.0003,30]
[420284990,1775910838350,-9992.2608207,0.0003,120]
[420284991,1775910838393,-350.0,0.0003,60]
[420284992,1775910838445,-350.0,0.0003,60]
[420284993,1775910838975,-208.0,0.0003,60]
[420284994,1775910839020,-2500.0,0.0003,60]
[420284995,1775910839067,-2500.0,0.0003,60]
[420284996,1775910839110,-2462.0,0.0003,60]
[420284997,1775910839150,-1700.0,0.0003,30]
[420284998,1775910839187,-1700.0,0.0003,30]
[420284999,1775910839218,-1575.0,0.0003,30]
[420285000,1775910839254,-187.0,0.00030065,120]
[420285001,1775910839292,-4150.0,0.00030071,120]
[420285002,1775910839330,-4150.0,0.00030071,120]
[420285003,1775910839361,-4138.0,0.00030071,120]
[420285004,1775910839388,-380.99076051,0.00030071,120]
[420285005,1775910839424,-1000.0,0.000301,30]
[420285006,1775910839472,-1000.0,0.0003012,30]
[420285007,1775910839503,-1000.0,0.0003012,30]
[420285008,1775910839541,-250.0,0.0003012,30]
[420285009,1775910839583,-355.0,0.0003012,30]
[420285010,1775910839622,-158.67953625,0.0003013,120]
[420285011,1775910839664,-246.17758397,0.0003013,120]
[420285012,1775910839700,-10252.87789974,0.0003013,120]
[420285013,1775910839757,-550.0,0.0003013,120]
[420285014,1775910839802,-550.0,0.0003013,120]
[420285015,1775910839844,-414.0,0.0003013,120]
[420285016,1775910839891,-906.0,0.00030136,30]
[420285017,1775910839948,-274.64130484,0.00030136,32]
[420285018,1775910840011,-1000.0,0.00030137,120]
[420285019,1775910840077,-1609.19,0.00030137,67]
[420285020,1775910840134,-1517.86,0.00030153,30]
[420285021,1775910840192,-151.63696435,0.00030205,66]
[420285022,1775910840237,-1517.86,0.00030306,30]
[420285023,1775910840275,-600.0,0.00030411,120]
[420285024,1775910840315,-879.82,0.00030425,30]
[420285025,1775910840354,-1517.86,0.00030459,30]
[420285026,1775910840394,-1444.0,0.00030575,120]
[420285027,1775910840423,-573.8,0.00030603,120]
[420285028,1775910840459,-1517.86,0.00030612,30]
[420285029,1775910840494,-500.0,0.00030685,120]
[420285030,1775910840526,-1517.86,0.00030765,30]
[420285031,1775910840560,-250.0,0.000308,30]
[420285032,1775910840592,-201.0,0.0003084,30]
[420285033,1775910840622,-203.0,0.00030841,120]
[420285034,1775910840660,-175.0,0.00030841,120]
[420285035,1775910840690,-1000.0,0.00030852,120]
[420285036,1775910840727,-1517.86,0.00030918,30]
[420285037,1775910840776,-203.8428058,0.00031,30]
[420285038,1775910840837,-1000.0,0.00031,120]
[420285039,1775910840905,-520.0,0.00031,30]
[420285040,1775910840988,-458.0,0.00031,30]
[420285041,1775910841032,-4999.0,0.00031,100]
[420285042,1775910841073,-1000.0,0.00031071,120]
[420285043,1775910841111,-1517.86,0.00031071,30]
[420285044,1775910841143,-3132.16412493,0.000311,120]
[420285045,1775910841171,-3000.0,0.000312,30]
[420285046,1775910841203,-1517.86,0.00031224,30]
[420285047,1775910841231,-1517.86,0.00031378,30]
[420285048,1775910841261,-1000.0,0.000314,120]
[420285049,1775910841290,-39140.97255199,0.000314,30]
[420285050,1775910841322,-171.76533429,0.000314,30]
[420285051,1775910841355,-1000.0,0.00031498,120]
[420285052,1775910841391,-2948.64756456,0.000315,30]
[420285053,1775910841423,-157.0,0.000315,120]
[420285054,1775910841459,-500.0,0.00031507,120]
[420285055,1775910841493,-1517.86,0.00031531,30]
[420285056,1775910841521,-577.39786671,0.000316,30]
[420285057,1775910841553,-1630.54,0.00031646,30]
[420285058,1775910841582,-573.8,0.00031671,120]
[420285059,1775910841613,-1517.86,0.00031684,30]
[420285060,1775910841647,-1000.0,0.00031684,120]
[420285061,1775910841686,-500.0,0.00031687,120]
[420285062,1775910841722,-1000.0,0.00031697,120]
[420285063,1775910841768,-1000.0,0.00031697,120]
[420285064,1775910841813,-1000.0,0.000317,120]
[420285065,1775910841880,-1000.0,0.00031834,120]
[420285066,1775910841953,-1517.86,0.00031837,30]
[420285067,1775910842007,-1000.0,0.00031863,120]
[420285068,1775910842060,-1000.0,0.000319,120]
[420285069,1775910842130,-1517.86,0.0003199,30]
[420285070,1775910842203,-1000.0,0.00031997,120]
[420285071,1775910842249,-295.3,0.00032,120]
[420285072,1775910842295,-1000.0,0.00032,120]
[420285073,1775910842329,-176.08143282,0.00032,120]
[420285074,1775910842362,-1000.0,0.00032,120]
[420285075,1775910842395,-500.0,0.00032,30]
[420285076,1775910842428,-302.0,0.00032,30]
[420285077,1775910842465,-1000.0,0.00032,120]
[420285078,1775910842498,-2500.0,0.00032,33]
[420285079,1775910842526,-4382.36283254,0.00032,120]
[420285080,1775910842562,-100000.0,0.00032,30]
[420285081,1775910842594,-100000.0,0.00032,30]
[420285082,1775910842633,-16166.90926371,0.00032,30]
[420285083,1775910842673,-100000.0,0.00032,30]
[420285084,1775910842700,-100000.0,0.00032,30]
[420285085,1775910842730,-5000.0,0.00032,90]
[420285086,1775910842765,-553.27016432,0.00032055,30]
[420285087,1775910843103,-1517.86,0.00032143,120]
[420285088,1775910843177,-1000.0,0.000322,120]
[420285089,1775910843220,-363.90930972,0.00032222,30]
[420285090,1775910843258,-363.90930972,0.00032222,30]
[420285091,1775910843308,-1000.0,0.00032243,120]
[420285092,1775910843352,-1517.86,0.00032296,120]
[420285093,1775910843417,-10007.35187955,0.000323,30]
[420285094,1775910843473,-500.0,0.00032329,120]
[420285095,1775910843516,-643.0,0.000324,120]
[420285096,1775910843556,-1517.86,0.00032449,120]
[420285097,1775910843588,-879.82,0.00032588,30]
[420285098,1775910843627,-1517.86,0.00032602,120]
[420285099,1775910843659,-573.8,0.0003274,120]
[420285100,1775910843690,-1517.86,0.00032755,120]
[420285101,1775910843715,-1291.69347668,0.000328,120]
[420285102,1775910843744,-167.36866857,0.000328,120]
[420285103,1775910843775,-1202.988,0.000328,30]
[420285104,1775910843804,-1202.98,0.000328,30]
[420285105,1775910843831,-1211.0,0.000328,120]
[420285106,1775910843865,-2172.78947368,0.00032849,120]
[420285107,1775910843896,-2172.78947368,0.00032849,120]
[420285108,1775910843925,-1264.95,0.00032849,120]
[420285109,1775910843953,-1264.95,0.00032849,120]
[420285110,1775910843987,-2068.10526316,0.00032849,120]
[420285111,1775910844016,-1596.6,0.00032849,120]
[420285112,1775910844047,-1596.6,0.00032849,120]
[420285113,1775910844074,-1350.47368421,0.00032849,120]
[420285114,1775910844109,-1350.47368421,0.00032849,120]
[420285115,1775910844139,-1739.25,0.00032849,120]
[420285116,1775910844172,-1739.25,0.00032849,120]
[420285117,1775910844203,-1746.94736842,0.00032849,120]
[420285118,1775910844243,-1746.94736842,0.00032849,120]
[420285119,1775910844283,-2465.0,0.00032849,120]
[420285120,1775910844315,-1869.15789474,0.00032849,120]
[420285121,1775910844354,-1869.15789474,0.00032849,120]
[420285122,1775910844392,-2254.5,0.00032849,120]
[420285123,1775910844432,-2254.5,0.00032849,120]
[420285124,1775910844504,-1805.21052632,0.00032849,120]
[420285125,1775910844564,-1805.21052632,0.00032849,120]
[420285126,1775910844626,-1854.0,0.00032849,120]
[420285127,1775910844678,-1854.0,0.00032849,120]
[420285128,1775910844730,-1412.52631579,0.00032849,120]
[420285129,1775910844767,-1412.52631579,0.00032849,120]
[420285130,1775910844827,-1615.5,0.00032849,120]
[420285131,1775910844870,-1615.5,0.00032849,120]
[420285132,1775910844922,-2192.21052632,0.00032849,120]
[420285133,1775910844961,-2192.21052632,0.00032849,120]
[420285134,1775910844993,-1901.0,0.00032849,120]
[420285135,1775910845033,-1901.0,0.00032849,120]
[420285136,1775910845076,-1916.52631579,0.00032849,120]
[420285137,1775910845117,-2273.0,0.00032849,120]
[420285138,1775910845149,-2273.0,0.00032849,120]
[420285139,1775910845188,-1257.61738246,0.00032849,120]
[420285140,1775910845224,-1257.61738246,0.00032849,120]
[420285141,1775910845262,-1300.0,0.00032849,120]
[420285142,1775910845298,-1300.0,0.00032849,120]
[420285143,1775910845335,-2416.0,0.00032849,120]
[420285144,1775910845378,-2067.5,0.00032849,120]
[420285145,1775910845411,-2067.5,0.00032849,120]
[420285146,1775910845455,-1709.09961306,0.00032849,120]
[420285147,1775910845499,-1447.20698328,0.00032849,120]
[420285148,1775910845543,-2091.5,0.00032849,30]
[420285149,1775910845586,-2091.5,0.00032849,30]
[420285150,1775910845655,-1553.0,0.00032849,30]
[420285151,1775910845707,-1553.0,0.00032849,30]
[420285152,1775910845746,-1388.61506457,0.00032849,30]
[420285153,1775910845794,-201.0,0.0003286,30]
[420285154,1775910845851,-971.65089478,0.0003287,120]
[420285155,1775910845907,-1000.0,0.00032877,120]
[420285156,1775910845957,-890.779204,0.00032877,120]
[420285157,1775910846000,-150.0,0.00032877,30]
[420285158,1775910846037,-150.0,0.00032877,30]
[420285159,1775910846065,-150.0,0.00032877,30]
[420285160,1775910846093,-150.0,0.00032877,30]
[420285161,1775910846123,-150.0,0.00032877,30]
[420285162,1775910846151,-150.0,0.00032877,30]
[420285163,1775910846180,-150.0,0.00032877,30]
[420285164,1775910846209,-150.0,0.00032877,30]
[420285165,1775910846239,-150.0,0.00032877,30]
[420285166,1775910846265,-150.0,0.00032877,30]
[420285167,1775910846293,-150.0,0.00032877,30]
[420285168,1775910846318,-150.0,0.00032877,30]
[420285169,1775910846346,-150.0,0.00032877,30]
[420285170,1775910846374,-150.0,0.00032877,30]
[420285171,1775910846400,-150.0,0.00032877,30]
[420285172,1775910846426,-150.0,0.00032877,30]
[420285173,1775910846451,-150.0,0.00032877,30]
[420285174,1775910846476,-150.0,0.00032877,30]
[420285175,1775910846503,-150.0,0.00032877,30]
[420285176,1775910846530,-249.0,0.00032877,30]
[420285177,1775910846557,-515.0,0.00032877,120]
[420285178,1775910846587,-500.0,0.00032877,120]
[420285179,1775910846615,-550.0,0.00032877,90]
[420285180,1775910846646,-179.52,0.000329,120]
[420285181,1775910846679,-331.27,0.000329,120]
[420285182,1775910846715,-162.5,0.000329,120]
[420285183,1775910847098,-425.4045,0.000329,30]
[420285184,1775910847160,-277.42,0.000329,120]
[420285185,1775910847201,-1517.86,0.00032908,120]
[420285186,1775910847248,-755.0,0.00032945,30]
[420285187,1775910847306,-159.0,0.00032945,30]
[420285188,1775910847363,-963.0,0.00032945,30]
[420285189,1775910847419,-4570.0,0.00032945,30]
[420285190,1775910847464,-6146.0,0.00032945,30]
[420285191,1775910847516,-510.0,0.00032945,30]
[420285192,1775910847587,-814.0,0.00032948,30]
[420285193,1775910847630,-2830.0,0.00032948,30]
[420285194,1775910847685,-1156.0,0.00032953,30]
[420285195,1775910847733,-1063.0,0.00032953,30]
[420285196,1775910847778,-174.60726686,0.00033,60]
[420285197,1775910847826,-1000.0,0.00033,30]
[420285198,1775910847870,-403.0,0.00033,120]
[420285199,1775910847910,-520.0,0.00033,30]
[420285200,1775910847949,-285.83390137,0.00033,120]
[420285201,1775910847992,-2562.93662,0.00033,34]
[420285202,1775910848032,-31289.73762867,0.00033,30]
[420285203,1775910848067,-474.25029868,0.00033,30]
[420285204,1775910848101,-1000.0,0.00033,120]
[420285205,1775910848141,-1517.86,0.00033061,120]
[420285206,1775910848175,-500.0,0.00033151,120]
[420285207,1775910848225,-1517.86,0.00033214,120]
[420285208,1775910848279,-2000.0,0.000333,120]
[420285209,1775910848339,-2000.0,0.000333,30]
[420285210,1775910848481,-272380.91558127,0.000333,33]
[420285211,1775910848597,-1517.86,0.00033367,120]
[420285212,1775910848642,-500.0,0.00033476,120]
[420285213,1775910848686,-1517.86,0.0003352,120]
[420285214,1775910848734,-448.4,0.00033521,30]
[420285215,1775910848779,-403.05,0.00033521,30]
[420285216,1775910848822,-1046.18367579,0.000336,30]
[420285217,1775910848869,-1517.86,0.00033673,120]
[420285218,1775910848910,-2434.37,0.00033688,30]
[420285219,1775910848945,-2014.85,0.00033699,120]
[420285220,1775910848992,-1863.48,0.0003371,30]
[420285221,1775910849039,-23310.52,0.000338,30]
[420285222,1775910849086,-573.8,0.00033808,120]
[420285223,1775910849141,-1517.86,0.00033827,120]
[420285224,1775910849192,-755.0,0.00033945,30]
[420285225,1775910849230,-159.0,0.00033945,30]
[420285226,1775910849271,-963.0,0.00033945,30]
[420285227,1775910849318,-4570.0,0.00033945,30]
[420285228,1775910849372,-6146.0,0.00033945,30]
[420285229,1775910849424,-510.0,0.00033945,30]
[420285230,1775910849462,-814.0,0.00033948,30]
[420285231,1775910849505,-2830.0,0.00033948,30]
[420285232,1775910849541,-1156.0,0.00033953,30]
[420285233,1775910849571,-1063.0,0.00033953,30]
[420285234,1775910849605,-500.0,0.00033973,120]
[420285235,1775910849638,-1517.86,0.0003398,120]
[420285236,1775910849673,-1000.0,0.00034,120]
[420285237,1775910849702,-2554.393012,0.00034,35]
[420285238,1775910849732,-1811.17,0.00034,30]
[420285239,1775910849762,-1983.09,0.00034,30]
[420285240,1775910849792,-404.0433,0.000341,30]
[420285241,1775910849823,-1517.86,0.00034133,120]
[420285242,1775910849855,-1029.45407458,0.000342,30]
[420285243,1775910849890,-18970.54592542,0.000342,30]
[420285244,1775910849925,-600.0,0.00034212,120]
[420285245,1775910849960,-550.0,0.00034247,120]
[420285246,1775910849987,-550.0,0.00034247,60]
[420285247,1775910850020,-550.0,0.00034247,120]
[420285248,1775910850049,-448.4,0.00034269,30]
[420285249,1775910850078,-1517.86,0.00034286,120]
[420285250,1775910850111,-156.91521131,0.00034311,78]
[420285251,1775910850143,-8310.5,0.0003438,30]
[420285252,1775910850174,-1517.86,0.00034439,120]
[420285253,1775910850206,-375.0,0.00034443,60]
[420285254,1775910850241,-500.0,0.00034443,60]
[420285255,1775910850273,-500.0,0.00034443,60]
[420285256,1775910850307,-375.0,0.00034443,60]
[420285257,1775910850347,-405.0,0.00034443,60]
[420285258,1775910850387,-500.0,0.00034443,60]
[420285259,1775910850425,-519.7841907,0.00034443,60]
[420285260,1775910850465,-287.7754924,0.00034443,60]
[420285261,1775910850508,-700.0,0.00034443,60]
[420285262,1775910850548,-282.2299487,0.00034443,60]
[420285263,1775910850589,-659.4233227,0.00034443,60]
[420285264,1775910850633,-700.0,0.00034443,60]
[420285265,1775910850673,-700.0,0.00034443,60]
[420285266,1775910850716,-500.0,0.00034443,60]
[420285267,1775910850753,-424.0960337,0.00034443,60]
[420285268,1775910850790,-441.9270879,0.00034443,60]
[420285269,1775910850824,-700.0,0.00034443,60]
[420285270,1775910850853,-500.0,0.00034443,60]
[420285271,1775910850881,-700.0,0.00034443,60]
[420285272,1775910850909,-645.9094289,0.00034443,60]
[420285273,1775910850936,-174.7114624,0.00034443,60]
[420285274,1775910850964,-700.0,0.00034443,60]
[420285275,1775910850992,-452.4582495,0.00034443,60]
[420285276,1775910851019,-700.0,0.00034443,60]
[420285277,1775910851047,-700.0,0.00034443,60]
[420285278,1775910851403,-169.9628349,0.00034443,60]
[420285279,1775910851432,-375.0,0.00034443,60]
[420285280,1775910851460,-700.0,0.00034443,60]
[420285281,1775910851493,-423.046146,0.00034443,60]
[420285282,1775910851522,-375.0,0.00034443,60]
[420285283,1775910851552,-700.0,0.00034443,60]
[420285284,1775910851581,-280.7583772,0.00034443,60]
[420285285,1775910851610,-700.0,0.00034443,60]
[420285286,1775910851636,-700.0,0.00034443,60]
[420285287,1775910851664,-700.0,0.00034443,60]
[420285288,1775910851692,-700.0,0.00034443,60]
[420285289,1775910851721,-700.0,0.00034443,60]
[420285290,1775910851748,-700.0,0.00034443,60]
[420285291,1775910851780,-700.0,0.00034443,60]
[420285292,1775910851812,-700.0,0.00034443,60]
[420285293,1775910851839,-700.0,0.00034443,60]
[420285294,1775910851870,-700.0,0.00034443,60]
[420285295,1775910851900,-700.0,0.00034443,60]
[420285296,1775910851928,-700.0,0.00034443,60]
[420285297,1775910851956,-700.0,0.00034443,60]
[420285298,1775910851990,-700.0,0.00034443,60]
[420285299,1775910852022,-700.0,0.00034443,60]
[420285300,1775910852062,-700.0,0.00034443,60]
[420285301,1775910852098,-700.0,0.00034443,60]
[420285302,1775910852142,-776.1554348,0.00034443,60]
[420285303,1775910852210,-250.0,0.00034443,60]
[420285304,1775910852261,-174.6596681,0.00034443,60]
[420285305,1775910852297,-375.0,0.00034443,60]
[420285306,1775910852332,-162.3731548,0.00034443,60]
[420285307,1775910852359,-375.0,0.00034443,60]
[420285308,1775910852389,-258.9692697,0.00034443,60]
[420285309,1775910852417,-188.8145075,0.00034443,60]
[420285310,1775910852444,-224.9833007,0.00034443,60]
[420285311,1775910852474,-500.0,0.00034443,60]
[420285312,1775910852504,-188.3128867,0.00034443,60]
[420285313,1775910852533,-500.0,0.00034443,60]
[420285314,1775910852561,-500.0,0.00034443,60]
[420285315,1775910852589,-375.0,0.00034443,60]
[420285316,1775910852623,-500.0,0.00034443,60]
[420285317,1775910852655,-500.0,0.00034443,60]
[420285318,1775910852711,-500.0,0.00034443,60]
[420285319,1775910852776,-500.0,0.00034443,60]
[420285320,1775910852887,-500.0,0.00034443,60]
[420285321,1775910852934,-796.4079101,0.00034443,60]
[420285322,1775910852987,-500.0,0.00034443,60]
[420285323,1775910853036,-500.0,0.00034443,60]
[420285324,1775910853093,-500.0,0.00034443,60]
[420285325,1775910853182,-500.0,0.00034443,60]
[420285326,1775910853239,-500.0,0.00034443,60]
[420285327,1775910853335,-500.0,0.00034443,60]
[420285328,1775910853387,-500.0,0.00034443,60]
[420285329,1775910853423,-500.0,0.00034443,60]
[420285330,1775910853460,-500.0,0.00034443,60]
[420285331,1775910853504,-500.0,0.00034443,60]
[420285332,1775910853551,-500.0,0.00034443,60]
[420285333,1775910853630,-500.0,0.00034443,60]
[420285334,1775910853669,-622.3209498,0.00034443,60]
[420285335,1775910853758,-600.0,0.00034443,60]
[420285336,1775910853827,-1000.0,0.00034443,60]
[420285337,1775910853875,-600.0,0.00034443,60]
[420285338,1775910853927,-1000.0,0.00034443,60]
[420285339,1775910853990,-600.0,0.00034443,60]
[420285340,1775910854033,-600.0,0.00034443,60]
[420285341,1775910854096,-170.5912025,0.00034443,60]
[420285342,1775910854199,-1000.0,0.00034443,60]
[420285343,1775910854370,-600.0,0.00034443,60]
[420285344,1775910854685,-600.0,0.00034443,60]
[420285345,1775910854989,-1000.0,0.00034443,60]
[420285346,1775910855146,-600.0,0.00034443,60]
[420285347,1775910855295,-600.0,0.00034443,60]
[420285348,1775910855357,-1000.0,0.00034443,60]
[420285349,1775910855454,-600.0,0.00034443,60]
[420285350,1775910855579,-600.0,0.00034443,60]
[420285351,1775910855640,-1000.0,0.00034443,60]
[420285352,1775910855695,-152.7833655,0.00034443,60]
[420285353,1775910855746,-600.0,0.00034443,60]
[420285354,1775910855785,-500.0,0.00034443,60]
[420285355,1775910855822,-600.0,0.00034443,60]
[420285356,1775910855871,-600.0,0.00034443,60]
[420285357,1775910855916,-500.0,0.00034443,60]
[420285358,1775910855959,-1000.0,0.00034443,60]
[420285359,1775910856016,-600.0,0.00034443,60]
[420285360,1775910856058,-600.0,0.00034443,60]
[420285361,1775910856100,-1000.0,0.00034443,60]
[420285362,1775910856135,-500.0,0.00034443,60]
[420285363,1775910856183,-600.0,0.00034443,60]
[420285364,1775910856237,-600.0,0.00034443,60]
[420285365,1775910856294,-1000.0,0.00034443,60]
[420285366,1775910856331,-600.0,0.00034443,60]
[420285367,1775910856385,-500.0,0.00034443,60]
[420285368,1775910856433,-600.0,0.00034443,60]
[420285369,1775910856490,-1000.0,0.00034443,60]
[420285370,1775910856533,-600.0,0.00034443,60]
[420285371,1775910856575,-500.0,0.00034443,60]
[420285372,1775910856625,-600.0,0.00034443,60]
[420285373,1775910856881,-1000.0,0.00034443,60]
[420285374,1775910856980,-600.0,0.00034443,60]
[420285375,1775910857010,-500.0,0.00034443,60]
[420285376,1775910857047,-600.0,0.00034443,60]
[420285377,1775910857079,-1000.0,0.00034443,60]
[420285378,1775910857110,-600.0,0.00034443,60]
[420285379,1775910857150,-500.0,0.00034443,60]
[420285380,1775910857191,-1000.0,0.00034443,60]
[420285381,1775910857235,-600.0,0.00034443,60]
[420285382,1775910857314,-500.0,0.00034443,60]
[420285383,1775910857394,-335.0,0.00034443,60]
[420285384,1775910857438,-1000.0,0.00034443,60]
[420285385,1775910857477,-600.0,0.00034443,60]
[420285386,1775910857529,-500.0,0.00034443,60]
[420285387,1775910857568,-600.0,0.00034443,60]
[420285388,1775910857601,-1000.0,0.00034443,60]
[420285389,1775910857641,-1000.0,0.00034443,60]
[420285390,1775910857696,-500.0,0.00034443,60]
[420285391,1775910857753,-600.0,0.00034443,60]
[420285392,1775910857789,-600.0,0.00034443,60]
[420285393,1775910857825,-1000.0,0.00034443,60]
[420285394,1775910857863,-1000.0,0.00034443,60]
[420285395,1775910857901,-500.0,0.00034443,60]
[420285396,1775910857967,-500.0,0.00034443,60]
[420285397,1775910858011,-600.0,0.00034443,60]
[420285398,1775910858045,-1000.0,0.00034443,60]
[420285399,1775910858077,-600.0,0.00034443,60]
[420285400,1775910858120,-1000.0,0.00034443,60]
[420285401,1775910858157,-500.0,0.00034443,60]
[420285402,1775910858192,-600.0,0.00034443,60]
[420285403,1775910858230,-500.0,0.00034443,60]
[420285404,1775910858261,-1000.0,0.00034443,60]
[420285405,1775910858298,-600.0,0.00034443,60]
[420285406,1775910858335,-1000.0,0.00034443,60]
[420285407,1775910858389,-500.0,0.00034443,60]
[420285408,1775910858431,-500.0,0.00034443,60]
[420285409,1775910858479,-1000.0,0.00034443,60]
[420285410,1775910858516,-600.0,0.00034443,60]
[420285411,1775910858570,-1000.0,0.00034443,60]
[420285412,1775910858621,-833.6873392,0.00034443,60]
[420285413,1775910858673,-600.0,0.00034443,60]
[420285414,1775910858715,-500.0,0.00034443,60]
[420285415,1775910858759,-326.9604319,0.00034443,60]
[420285416,1775910858828,-1000.0,0.00034443,60]
[420285417,1775910858893,-600.0,0.00034443,60]
[420285418,1775910858931,-1000.0,0.00034443,60]
[420285419,1775910858992,-600.0,0.00034443,60]
[420285420,1775910859048,-500.0,0.00034443,60]
[420285421,1775910859116,-800.0,0.00034443,60]
[420285422,1775910859205,-1000.0,0.00034443,60]
[420285423,1775910859241,-600.0,0.00034443,60]
[420285424,1775910859285,-1000.0,0.00034443,60]
[420285425,1775910859327,-500.0,0.00034443,60]
[420285426,1775910859368,-600.0,0.00034443,60]
[420285427,1775910859408,-800.0,0.00034443,60]
[420285428,1775910859444,-600.0,0.00034443,60]
[420285429,1775910859489,-1000.0,0.00034443,60]
[420285430,1775910859543,-1000.0,0.00034443,60]
[420285431,1775910859584,-500.0,0.00034443,60]
[420285432,1775910859626,-600.0,0.00034443,60]
[420285433,1775910859658,-600.0,0.00034443,60]
[420285434,1775910859689,-1000.0,0.00034443,60]
[420285435,1775910859722,-1000.0,0.00034443,60]
[420285436,1775910859750,-800.0,0.00034443,60]
[420285437,1775910859781,-600.0,0.00034443,60]
[420285438,1775910859813,-600.0,0.00034443,60]
[420285439,1775910859846,-1000.0,0.00034443,60]
[420285440,1775910859878,-800.0,0.00034443,60]
[420285441,1775910859911,-600.0,0.00034443,60]
[420285442,1775910859946,-500.0,0.00034443,60]
[420285443,1775910859983,-1000.0,0.00034443,60]
[420285444,1775910860039,-600.0,0.00034443,60]
[420285445,1775910860102,-1000.0,0.00034443,60]
[420285446,1775910860198,-800.0,0.00034443,60]
[420285447,1775910860290,-600.0,0.00034443,60]
[420285448,1775910860322,-500.0,0.00034443,60]
[420285449,1775910860375,-1000.0,0.00034443,60]
[420285450,1775910860414,-600.0,0.00034443,60]
[420285451,1775910860457,-800.0,0.00034443,60]